[Event "CZE-ch Youth G10-G12-G14 2022"]
[Site "Luhacovice"]
[Date "2022.03.12"]
[Round "1.41"]
[White "Koval, Anna"]
[Black "Foldynova Julie"]
[Result "0-1"]
[ECO "C42"]
[WhiteElo "1278"]
[BlackElo "1000"]
[Annotator "NA"]
[PlyCount "95"]
[EventDate "2022.03.12"]
[EventType "swiss"]
[EventCountry "CZE"]
[SourceTitle "playchess.com"]
[Source "ChessBase"]
[SourceQuality "1"]
[TimeControl "40/5400+30:1800+30"]

1. e4 {[%emt 0:00:04]} e5 {[%emt 0:00:01]} 2. Nf3 {[%emt 0:00:02]} Nf6 {[%emt 0:00:07]} 3. Nxe5 {[%emt 0:00:41]} d6 {[%emt 0:00:11]} 4. Nf3 {[%emt 0:00:37]} Nxe4 {[%emt 0:00:07]} 5. Qe2 {[%emt 0:00:42]} Qe7 {[%emt 0:00:21]} 6. d4 {[%emt 0:00:38]} d5 {[%emt 0:00:38]} 7. Nbd2 {[%emt 0:00:35]} Nc6 {[%emt 0:02:33]} 8. Nxe4 {[%emt 0:01:59]} dxe4 {[%emt 0:00:42]} 9. Ng5 {[%emt 0:02:07]} Nxd4 {[%emt 0:04:12]} 10. Qc4 {[%emt 0:00:43]} c5 {[%emt 0:05:30]} 11. Be3 {[%emt 0:01:43]} h6 {[%emt 0:05:25]} 12. Nh3 {[%emt 0:00:56]} b5 {[%emt 0:08:00]} 13. Qc3 {[%emt 0:01:48]} b4 {[%emt 0:10:24]} 14. Qd2 {[%emt 0:01:46]} Qe5 {[%emt 0:09:55]} 15. O-O-O {[%emt 0:00:53]} Bf5 {[%emt 0:05:03]} 16. Bxd4 {[%emt 0:02:39]} cxd4 {[%emt 0:00:20]} 17. Qxd4 {[%emt 0:00:29]} Qxd4 {[%emt 0:00:20]} 18. Rxd4 {[%emt 0:00:12]} Be7 {[%emt 0:02:08]} 19. Nf4 {[%emt 0:00:39]} Bg5 {[%emt 0:02:32]} 20. Bb5+ {[%emt 0:00:54]} Ke7 {[%emt 0:01:02]} 21. g3 {[%emt 0:00:33]} Rab8 {[%emt 0:01:49]} 22. Ba4 {[%emt 0:00:54]} Rhc8 {[%emt 0:01:09]} 23. Kb1 {[%emt 0:00:47]} Bf6 {[%emt 0:02:33]} 24. Nd5+ {[%emt 0:00:35]} Ke6 {[%emt 0:01:22]} 25. Bd7+ {[%emt 0:00:57]} Kxd7 {[%emt 0:01:39]} 26. Nxf6+ {[%emt 0:00:24]} Ke6 {[%emt 0:02:27]} 27. Nxe4 {[%emt 0:00:26]} Ke5 {[%emt 0:01:27]} 28. Nd6 {[%emt 0:03:09]} Bxc2+ {[%emt 0:02:06]} 29. Ka1 {[%emt 0:00:14]} Kxd4 {[%emt 0:01:07]} 30. Nxc8 {[%emt 0:00:24]} Rxc8 {[%emt 0:00:36]} 31. Rc1 {[%emt 0:00:19]} Kd3 {[%emt 0:01:02]} 32. b3 {[%emt 0:00:36]} Kc3 {[%emt 0:01:28]} 33. h3 {[%emt 0:01:36]} a5 {[%emt 0:00:13]} 34. h4 {[%emt 0:00:49]} a4 {[%emt 0:00:19]} 35. bxa4 {[%emt 0:00:25]} Ra8 {[%emt 0:00:14]} 36. Re1 {[%emt 0:00:49]} f5 {[%emt 0:03:25]} 37. Re3+ {[%emt 0:01:24]} Bd3 {[%emt 0:00:46]} 38. h5 {[%emt 0:00:45]} Rxa4 {[%emt 0:00:33]} 39. Rxd3+ {[%emt 0:00:53]} Kxd3 {[%emt 0:00:21]} 40. Kb2 {[%emt 0:00:02]} Kc4 {[%emt 0:00:52]} 41. f3 {[%emt 0:30:25]} Ra5 {[%emt 0:30:52]} 42. f4 {[%emt 0:00:51]} Ra7 {[%emt 0:00:29]} 43. Kb1 {[%emt 0:00:39]} Re7 {[%emt 0:00:33]} 44. a4 {[%emt 0:00:44]} Kb3 {[%emt 0:00:42]} 45. Kc1 {[%emt 0:00:16]} Kc3 {[%emt 0:00:17]} 46. Kd1 {[%emt 0:00:21]} b3 {[%emt 0:00:31]} 47. a5 {[%emt 0:00:23]} b2 {[%emt 0:00:17]} 48. a6 {[%emt 0:00:25]} 0-1

[Event "CZE-ch Youth G10-G12-G14 2022"]
[Site "Luhacovice"]
[Date "2022.03.12"]
[Round "1.42"]
[White "Urvalkova Ema"]
[Black "Kaplanova, Dominika"]
[Result "0-1"]
[ECO "B11"]
[WhiteElo "1000"]
[BlackElo "1269"]
[Annotator "NA"]
[PlyCount "53"]
[EventDate "2022.03.12"]
[EventType "swiss"]
[EventCountry "CZE"]
[SourceTitle "playchess.com"]
[Source "ChessBase"]
[SourceQuality "1"]
[TimeControl "40/5400+30:1800+30"]

1. e4 {[%emt 0:00:04]} c6 {[%emt 0:00:16]} 2. Nf3 {[%emt 0:00:09]} d5 {[%emt 0:00:08]} 3. Nc3 {[%emt 0:00:22]} dxe4 {[%emt 0:00:49]} 4. Nxe4 {[%emt 0:00:31]} Bf5 {[%emt 0:00:07]} 5. Bd3 {[%emt 0:00:49]} e6 {[%emt 0:01:30]} 6. O-O {[%emt 0:00:53]} Nd7 {[%emt 0:00:54]} 7. Qe2 {[%emt 0:00:46]} Bxe4 {[%emt 0:02:20]} 8. Qxe4 {[%emt 0:00:58]} Ngf6 {[%emt 0:00:55]} 9. Qh4 {[%emt 0:01:48]} Nc5 {[%emt 0:02:59]} 10. Ne5 {[%emt 0:02:22]} Bd6 {[%emt 0:05:34]} 11. Re1 {[%emt 0:01:52]} Bxe5 {[%emt 0:03:35]} 12. Qh3 {[%emt 0:03:03]} Nxd3 {[%emt 0:01:20]} 13. cxd3 {[%emt 0:00:31]} Bc7 {[%emt 0:00:30]} 14. Re3 {[%emt 0:01:22]} Nd5 {[%emt 0:01:01]} 15. Re4 {[%emt 0:02:15]} Nf4 {[%emt 0:01:01]} 16. Qg4 {[%emt 0:00:57]} Ng6 {[%emt 0:02:22]} 17. b3 {[%emt 0:01:25]} Qd6 {[%emt 0:01:31]} 18. Qh3 {[%emt 0:01:04]} O-O-O {[%emt 0:01:37]} 19. Re3 {[%emt 0:01:08]} Bb6 {[%emt 0:00:57]} 20. Rf3 {[%emt 0:00:56]} Ne5 {[%emt 0:01:46]} 21. Rg3 {[%emt 0:02:06]} Qd4 {[%emt 0:02:47]} 22. Rf3 {[%emt 0:01:27]} Qxa1 {[%emt 0:00:52]} 23. g4 {[%emt 0:01:03]} Qxc1+ {[%emt 0:01:16]} 24. Kg2 {[%emt 0:01:05]} Nxf3 {[%emt 0:00:32]} 25. Qxf3 {[%emt 0:00:38]} f6 {[%emt 0:00:29]} 26. a4 {[%emt 0:01:40]} Qxd2 {[%emt 0:00:30]} 27. Kh3 {[%emt 0:00:45]} 0-1

[Event "CZE-ch Youth G10-G12-G14 2022"]
[Site "Luhacovice"]
[Date "2022.03.12"]
[Round "1.43"]
[White "Brezikova, Beata"]
[Black "Vacekova Anita"]
[Result "0-1"]
[ECO "C56"]
[WhiteElo "1266"]
[BlackElo "1000"]
[Annotator "NA"]
[PlyCount "117"]
[EventDate "2022.03.12"]
[EventType "swiss"]
[EventCountry "CZE"]
[SourceTitle "playchess.com"]
[Source "ChessBase"]
[SourceQuality "1"]
[TimeControl "40/5400+30:1800+30"]

1. e4 {[%emt 0:00:02]} e5 {[%emt 0:00:05]} 2. Nf3 {[%emt 0:00:05]} Nc6 {[%emt 0:00:04]} 3. d4 {[%emt 0:00:07]} exd4 {[%emt 0:00:05]} 4. Bc4 {[%emt 0:00:06]} Nf6 {[%emt 0:01:05]} 5. e5 {[%emt 0:00:11]} d5 {[%emt 0:01:03]} 6. Bb5 {[%emt 0:00:10]} Nd7 {[%emt 0:02:56]} 7. O-O {[%emt 0:01:15]} Bc5 {[%emt 0:02:30]} 8. Bxc6 {[%emt 0:05:06]} bxc6 {[%emt 0:00:09]} 9. Nxd4 {[%emt 0:12:21]} Bxd4 {[%emt 0:11:18]} 10. Qxd4 {[%emt 0:00:46]} O-O {[%emt 0:00:41]} 11. Nc3 {[%emt 0:02:16]} Bb7 {[%emt 0:02:48]} 12. Re1 {[%emt 0:08:00]} Re8 {[%emt 0:06:29]} 13. b4 {[%emt 0:15:29]} Qe7 {[%emt 0:03:56]} 14. Na4 {[%emt 0:13:07]} f6 {[%emt 0:04:19]} 15. f4 {[%emt 0:05:12]} Qf7 {[%emt 0:13:27]} 16. Bb2 {[%emt 0:04:52]} fxe5 {[%emt 0:00:38]} 17. fxe5 {[%emt 0:00:28]} Nf8 {[%emt 0:02:48]} 18. Rf1 {[%emt 0:06:20]} Qg6 {[%emt 0:01:34]} 19. c4 {[%emt 0:02:23]} Ne6 {[%emt 0:07:30]} 20. Qc3 {[%emt 0:09:45]} Ba6 {[%emt 0:02:56]} 21. Rfe1 {[%emt 0:04:36]} Bxc4 {[%emt 0:00:39]} 22. Qd2 {[%emt 0:01:48]} Ng5 {[%emt 0:01:46]} 23. Kh1 {[%emt 0:01:02]} Ne4 {[%emt 0:02:16]} 24. Qe3 {[%emt 0:01:32]} Rf8 {[%emt 0:02:27]} 25. Nc5 {[%emt 0:01:45]} Rf2 {[%emt 0:01:40]} 26. g3 {[%emt 0:02:39]} Rxb2 {[%emt 0:00:53]} 27. Nxe4 {[%emt 0:00:20]} Qxe4+ {[%emt 0:00:20]} 28. Qxe4 {[%emt 0:00:13]} dxe4 {[%emt 0:00:09]} 29. a3 {[%emt 0:00:21]} Rf8 {[%emt 0:00:25]} 30. Rac1 {[%emt 0:00:49]} Bd5 {[%emt 0:00:14]} 31. Kg1 {[%emt 0:00:59]} Rff2 {[%emt 0:00:17]} 32. Re3 {[%emt 0:00:18]} Rxh2 {[%emt 0:00:48]} 33. g4 {[%emt 0:00:33]} Rhg2+ {[%emt 0:00:14]} 34. Kf1 {[%emt 0:00:21]} Rxg4 {[%emt 0:00:36]} 35. Rcc3 {[%emt 0:00:31]} Rbg2 {[%emt 0:00:21]} 36. Ke1 {[%emt 0:00:53]} Rg1+ {[%emt 0:01:10]} 37. Kd2 {[%emt 0:00:13]} R4g2+ {[%emt 0:00:12]} 38. Re2 {[%emt 0:00:12]} g5 {[%emt 0:00:50]} 39. Rxg2 {[%emt 0:00:25]} Rxg2+ {[%emt 0:00:12]} 40. Ke1 {[%emt 0:00:11]} a6 {[%emt 0:00:54]} 41. Kf1 {[%emt 0:30:18]} Rb2 {[%emt 0:30:16]} 42. Rg3 {[%emt 0:00:35]} h6 {[%emt 0:00:09]} 43. Rh3 {[%emt 0:00:24]} Kg7 {[%emt 0:00:19]} 44. Rg3 {[%emt 0:00:15]} Rb3 {[%emt 0:00:15]} 45. Rxb3 {[%emt 0:00:19]} Bxb3 {[%emt 0:00:08]} 46. Kf2 {[%emt 0:00:09]} h5 {[%emt 0:00:16]} 47. Ke3 {[%emt 0:00:22]} Bd5 {[%emt 0:00:07]} 48. a4 {[%emt 0:00:38]} Kf7 {[%emt 0:00:12]} 49. Kf2 {[%emt 0:00:24]} Ke6 {[%emt 0:00:06]} 50. Ke3 {[%emt 0:00:54]} Kxe5 {[%emt 0:00:12]} 51. Kf2 {[%emt 0:00:30]} g4 {[%emt 0:00:12]} 52. Kf1 {[%emt 0:00:19]} Kf4 {[%emt 0:00:13]} 53. Kg1 {[%emt 0:00:22]} e3 {[%emt 0:00:07]} 54. Kf1 {[%emt 0:00:06]} Bc4+ {[%emt 0:00:12]} 55. Kg1 {[%emt 0:00:35]} Kf3 {[%emt 0:01:47]} 56. Kh2 {[%emt 0:00:26]} e2 {[%emt 0:00:07]} 57. b5 {[%emt 0:00:21]} e1=Q {[%emt 0:00:36]} 58. bxc6 {[%emt 0:00:19]} Qg3+ {[%emt 0:00:19]} 59. Kh1 {[%emt 0:00:08]} 0-1

[Event "CZE-ch Youth G10-G12-G14 2022"]
[Site "Luhacovice"]
[Date "2022.03.13"]
[Round "2.1"]
[White "Jenikova Sabina"]
[Black "Vancakova, Veronika"]
[Result "0-1"]
[ECO "D00"]
[WhiteElo "1076"]
[BlackElo "1300"]
[Annotator "NA"]
[PlyCount "70"]
[EventDate "2022.03.12"]
[EventType "swiss"]
[EventCountry "CZE"]
[SourceTitle "playchess.com"]
[Source "ChessBase"]
[SourceQuality "1"]
[TimeControl "40/5400+30:1800+30"]

1. d4 {[%emt 0:00:07]} Nf6 {[%emt 0:00:04]} 2. Nc3 {[%emt 0:00:22]} d5 {[%emt 0:00:11]} 3. Bf4 {[%emt 0:00:17]} g6 {[%emt 0:03:10]} 4. Nb5 {[%emt 0:01:30]} Na6 {[%emt 0:00:11]} 5. e3 {[%emt 0:00:27]} c6 {[%emt 0:03:26]} 6. Nc3 {[%emt 0:00:25]} Nc7 {[%emt 0:00:55]} 7. Nf3 {[%emt 0:00:18]} Bg7 {[%emt 0:02:03]} 8. Bd3 {[%emt 0:01:04]} Ne6 {[%emt 0:01:42]} 9. Be5 {[%emt 0:01:04]} O-O {[%emt 0:01:06]} 10. O-O {[%emt 0:00:10]} b6 {[%emt 0:02:19]} 11. h3 {[%emt 0:00:36]} Bb7 {[%emt 0:00:26]} 12. b3 {[%emt 0:01:13]} c5 {[%emt 0:01:44]} 13. a4 {[%emt 0:01:58]} Qc8 {[%emt 0:01:49]} 14. Qd2 {[%emt 0:00:35]} Rd8 {[%emt 0:01:21]} 15. Rfe1 {[%emt 0:02:04]} Nf8 {[%emt 0:07:40]} 16. Nb5 {[%emt 0:02:34]} Ne6 {[%emt 0:05:32]} 17. c4 {[%emt 0:02:39]} a6 {[%emt 0:02:42]} 18. cxd5 {[%emt 0:00:49]} Bxd5 {[%emt 0:01:06]} 19. Nc3 {[%emt 0:00:47]} Bxf3 {[%emt 0:03:39]} 20. gxf3 {[%emt 0:00:33]} cxd4 {[%emt 0:00:17]} 21. exd4 {[%emt 0:00:28]} Nh5 {[%emt 0:09:27]} 22. b4 {[%emt 0:01:30]} Nxd4 {[%emt 0:03:46]} 23. Bxg7 {[%emt 0:00:33]} Nxf3+ {[%emt 0:00:17]} 24. Kg2 {[%emt 0:01:36]} Nxd2 {[%emt 0:00:17]} 25. Bh6 {[%emt 0:01:14]} Qxc3 {[%emt 0:01:17]} 26. Bxd2 {[%emt 0:00:30]} Qxd2 {[%emt 0:00:26]} 27. Be2 {[%emt 0:00:11]} Qg5+ {[%emt 0:01:05]} 28. Bg4 {[%emt 0:00:18]} Ra7 {[%emt 0:00:41]} 29. Kh2 {[%emt 0:00:32]} Rd2 {[%emt 0:00:15]} 30. Rf1 {[%emt 0:00:17]} Rc7 {[%emt 0:00:32]} 31. Rab1 {[%emt 0:00:46]} Rcc2 {[%emt 0:00:27]} 32. Kg1 {[%emt 0:00:09]} f5 {[%emt 0:01:00]} 33. f3 {[%emt 0:01:15]} Rg2+ {[%emt 0:00:12]} 34. Kh1 {[%emt 0:00:10]} Rh2+ {[%emt 0:00:05]} 35. Kg1 {[%emt 0:00:11]} Rcg2# {[%emt 0:00:08]} 0-1

[Event "CZE-ch Youth G10-G12-G14 2022"]
[Site "Luhacovice"]
[Date "2022.03.13"]
[Round "2.2"]
[White "Hujova Tess"]
[Black "Kusova, Nikola"]
[Result "1-0"]
[ECO "A22"]
[WhiteElo "1000"]
[BlackElo "1227"]
[Annotator "NA"]
[PlyCount "57"]
[EventDate "2022.03.12"]
[EventType "swiss"]
[EventCountry "CZE"]
[SourceTitle "playchess.com"]
[Source "ChessBase"]
[SourceQuality "1"]
[TimeControl "40/5400+30:1800+30"]

1. c4 {[%emt 0:00:05]} e5 {[%emt 0:01:34]} 2. Nc3 {[%emt 0:00:54]} Nf6 {[%emt 0:00:59]} 3. g3 {[%emt 0:01:01]} Bc5 {[%emt 0:02:01]} 4. Bg2 {[%emt 0:02:10]} O-O {[%emt 0:02:01]} 5. e3 {[%emt 0:02:02]} Re8 {[%emt 0:01:05]} 6. Nf3 {[%emt 0:03:32]} d6 {[%emt 0:01:06]} 7. Qc2 {[%emt 0:04:43]} Nc6 {[%emt 0:02:40]} 8. a3 {[%emt 0:02:01]} Be6 {[%emt 0:06:25]} 9. b4 {[%emt 0:04:46]} Bb6 {[%emt 0:02:28]} 10. Qb3 {[%emt 0:04:03]} a6 {[%emt 0:03:30]} 11. O-O {[%emt 0:02:13]} Ba7 {[%emt 0:02:01]} 12. a4 {[%emt 0:06:20]} d5 {[%emt 0:02:57]} 13. cxd5 {[%emt 0:04:20]} Nxd5 {[%emt 0:00:45]} 14. Nxd5 {[%emt 0:00:17]} Bxd5 {[%emt 0:00:28]} 15. Qc3 {[%emt 0:00:41]} Bxf3 {[%emt 0:02:04]} 16. Bxf3 {[%emt 0:00:56]} e4 {[%emt 0:04:56]} 17. Bg2 {[%emt 0:01:36]} Qe7 {[%emt 0:10:36]} 18. Bb2 {[%emt 0:00:49]} f6 {[%emt 0:01:52]} 19. b5 {[%emt 0:00:31]} axb5 {[%emt 0:02:32]} 20. axb5 {[%emt 0:00:30]} Nb4 {[%emt 0:01:14]} 21. Ba3 {[%emt 0:01:09]} Nd5 {[%emt 0:01:10]} 22. Bxe7 {[%emt 0:00:30]} Nxc3 {[%emt 0:00:12]} 23. dxc3 {[%emt 0:00:37]} Rxe7 {[%emt 0:00:14]} 24. Rfd1 {[%emt 0:00:30]} Ree8 {[%emt 0:00:51]} 25. Rd7 {[%emt 0:01:31]} Bb6 {[%emt 0:02:04]} 26. Rxa8 {[%emt 0:00:56]} Rxa8 {[%emt 0:00:14]} 27. Bxe4 {[%emt 0:00:31]} Ra1+ {[%emt 0:02:11]} 28. Kg2 {[%emt 0:00:16]} Ra2 {[%emt 0:00:46]} 29. Bd5+ {[%emt 0:00:17]} 1-0

[Event "CZE-ch Youth G10-G12-G14 2022"]
[Site "Luhacovice"]
[Date "2022.03.13"]
[Round "2.3"]
[White "Lackova, Lucie"]
[Black "Koutna Simona"]
[Result "1-0"]
[ECO "B50"]
[WhiteElo "1142"]
[BlackElo "1000"]
[Annotator "NA"]
[PlyCount "49"]
[EventDate "2022.03.12"]
[EventType "swiss"]
[EventCountry "CZE"]
[SourceTitle "playchess.com"]
[Source "ChessBase"]
[SourceQuality "1"]
[TimeControl "40/5400+30:1800+30"]

1. e4 {[%emt 0:00:04]} c5 {[%emt 0:00:10]} 2. Nc3 {[%emt 0:00:13]} Nc6 {[%emt 0:00:23]} 3. Nf3 {[%emt 0:00:38]} d6 {[%emt 0:00:57]} 4. Be2 {[%emt 0:01:54]} g6 {[%emt 0:00:22]} 5. O-O {[%emt 0:00:20]} Bg7 {[%emt 0:00:30]} 6. d3 {[%emt 0:00:12]} Nf6 {[%emt 0:00:43]} 7. d4 {[%emt 0:06:12]} Qc7 {[%emt 0:02:03]} 8. d5 {[%emt 0:06:16]} Nb4 {[%emt 0:01:02]} 9. a3 {[%emt 0:00:56]} Na6 {[%emt 0:00:43]} 10. Re1 {[%emt 0:04:27]} O-O {[%emt 0:00:44]} 11. Bc4 {[%emt 0:03:39]} e6 {[%emt 0:01:22]} 12. dxe6 {[%emt 0:03:24]} fxe6 {[%emt 0:00:34]} 13. Nb5 {[%emt 0:01:41]} Qc6 {[%emt 0:01:41]} 14. Qxd6 {[%emt 0:04:22]} Nxe4 {[%emt 0:02:11]} 15. Qxc6 {[%emt 0:01:48]} bxc6 {[%emt 0:00:33]} 16. Rxe4 {[%emt 0:01:43]} cxb5 {[%emt 0:00:26]} 17. Bxb5 {[%emt 0:01:45]} Rd8 {[%emt 0:01:35]} 18. Bg5 {[%emt 0:01:45]} Bb7 {[%emt 0:02:44]} 19. Rxe6 {[%emt 0:01:46]} Rf8 {[%emt 0:04:09]} 20. Bxa6 {[%emt 0:01:52]} Bxf3 {[%emt 0:00:49]} 21. gxf3 {[%emt 0:00:16]} Rxf3 {[%emt 0:00:57]} 22. Bb7 {[%emt 0:00:26]} Rxa3 {[%emt 0:01:50]} 23. Rxa3 {[%emt 0:00:47]} Rb8 {[%emt 0:00:56]} 24. Bd5 {[%emt 0:02:42]} Kf8 {[%emt 0:01:11]} 25. Rf3+ {[%emt 0:01:14]} 1-0

[Event "CZE-ch Youth G10-G12-G14 2022"]
[Site "Luhacovice"]
[Date "2022.03.13"]
[Round "2.4"]
[White "Mazurkova Viktorie"]
[Black "Janouskova, Eliska"]
[Result "0-1"]
[ECO "A00"]
[WhiteElo "1000"]
[BlackElo "1167"]
[Annotator "NA"]
[PlyCount "52"]
[EventDate "2022.03.12"]
[EventType "swiss"]
[EventCountry "CZE"]
[SourceTitle "playchess.com"]
[Source "ChessBase"]
[SourceQuality "1"]
[TimeControl "40/5400+30:1800+30"]

1. e4 {[%emt 0:00:02]} e5 {[%emt 0:00:16]} 2. Nf3 {[%emt 0:00:07]} d5 {[%emt 0:00:19]} 3. Nc3 {[%emt 0:00:34]} dxe4 {[%emt 0:01:17]} 4. Nxe4 {[%emt 0:00:39]} Nf6 {[%emt 0:01:47]} 5. Neg5 {[%emt 0:00:43]} h6 {[%emt 0:01:46]} 6. Nh3 {[%emt 0:01:14]} Nc6 {[%emt 0:02:53]} 7. Be2 {[%emt 0:01:41]} e4 {[%emt 0:00:57]} 8. Nfg1 {[%emt 0:00:45]} Bc5 {[%emt 0:03:55]} 9. Bb5 {[%emt 0:01:52]} O-O {[%emt 0:02:34]} 10. d3 {[%emt 0:01:05]} exd3 {[%emt 0:01:32]} 11. cxd3 {[%emt 0:00:17]} Re8+ {[%emt 0:00:37]} 12. Ne2 {[%emt 0:00:30]} Bg4 {[%emt 0:01:05]} 13. O-O {[%emt 0:00:42]} Bxe2 {[%emt 0:00:57]} 14. Qe1 {[%emt 0:00:40]} Bxf1 {[%emt 0:01:20]} 15. Qxf1 {[%emt 0:00:21]} a6 {[%emt 0:00:34]} 16. Bxc6 {[%emt 0:00:28]} bxc6 {[%emt 0:01:16]} 17. Nf4 {[%emt 0:01:21]} Ng4 {[%emt 0:01:44]} 18. Be3 {[%emt 0:02:13]} Nxe3 {[%emt 0:00:58]} 19. fxe3 {[%emt 0:00:24]} Bxe3+ {[%emt 0:00:24]} 20. Kh1 {[%emt 0:00:43]} Qf6 {[%emt 0:01:08]} 21. Re1 {[%emt 0:01:03]} Qxf4 {[%emt 0:00:38]} 22. Qe2 {[%emt 0:01:16]} Bd2 {[%emt 0:01:41]} 23. Qe4 {[%emt 0:01:32]} Rxe4 {[%emt 0:00:18]} 24. dxe4 {[%emt 0:00:53]} Bxe1 {[%emt 0:00:10]} 25. Kg1 {[%emt 0:01:00]} Qf2+ {[%emt 0:00:08]} 26. Kh1 {[%emt 0:02:40]} Qf1# {[%emt 0:00:03]} 0-1

[Event "CZE-ch Youth G10-G12-G14 2022"]
[Site "Luhacovice"]
[Date "2022.03.13"]
[Round "2.5"]
[White "Lickova, Anna"]
[Black "Romanko Diana"]
[Result "0-1"]
[ECO "C01"]
[WhiteElo "1016"]
[BlackElo "1000"]
[Annotator "NA"]
[PlyCount "157"]
[EventDate "2022.03.12"]
[EventType "swiss"]
[EventCountry "CZE"]
[SourceTitle "playchess.com"]
[Source "ChessBase"]
[SourceQuality "1"]
[TimeControl "40/5400+30:1800+30"]

1. e4 {[%emt 0:00:02]} e6 {[%emt 0:00:23]} 2. d4 {[%emt 0:00:21]} d5 {[%emt 0:00:21]} 3. exd5 {[%emt 0:01:28]} exd5 {[%emt 0:00:40]} 4. Nf3 {[%emt 0:01:08]} Bd6 {[%emt 0:02:44]} 5. Nc3 {[%emt 0:00:36]} c6 {[%emt 0:01:52]} 6. Be3 {[%emt 0:03:16]} Nf6 {[%emt 0:03:04]} 7. Bd3 {[%emt 0:03:19]} Bc7 {[%emt 0:04:58]} 8. Qd2 {[%emt 0:02:51]} Qd6 {[%emt 0:06:28]} 9. O-O-O {[%emt 0:01:23]} Be6 {[%emt 0:03:11]} 10. Ng5 {[%emt 0:05:48]} Nbd7 {[%emt 0:04:04]} 11. Rde1 {[%emt 0:06:26]} O-O-O {[%emt 0:00:43]} 12. Nxe6 {[%emt 0:01:16]} fxe6 {[%emt 0:00:33]} 13. g3 {[%emt 0:07:56]} Rde8 {[%emt 0:01:20]} 14. Bf4 {[%emt 0:02:11]} e5 {[%emt 0:04:29]} 15. dxe5 {[%emt 0:00:22]} Nxe5 {[%emt 0:00:50]} 16. Bf5+ {[%emt 0:02:12]} Kb8 {[%emt 0:04:25]} 17. Re3 {[%emt 0:01:10]} d4 {[%emt 0:01:22]} 18. Re2 {[%emt 0:05:01]} dxc3 {[%emt 0:01:21]} 19. Qxc3 {[%emt 0:00:23]} Qd5 {[%emt 0:03:24]} 20. Rd1 {[%emt 0:00:36]} Qb5 {[%emt 0:02:08]} 21. Rde1 {[%emt 0:01:59]} Nd5 {[%emt 0:03:39]} 22. Qa3 {[%emt 0:01:53]} Nf6 {[%emt 0:01:49]} 23. Re3 {[%emt 0:01:17]} Ba5 {[%emt 0:02:19]} 24. Bxe5+ {[%emt 0:01:59]} Ka8 {[%emt 0:00:57]} 25. R1e2 {[%emt 0:09:54]} Nd5 {[%emt 0:04:02]} 26. Qb3 {[%emt 0:07:51]} Nxe3 {[%emt 0:01:09]} 27. Qxe3 {[%emt 0:02:49]} Bc7 {[%emt 0:03:29]} 28. f4 {[%emt 0:00:29]} Bxe5 {[%emt 0:05:19]} 29. fxe5 {[%emt 0:00:24]} g6 {[%emt 0:02:37]} 30. Bh3 {[%emt 0:00:56]} Re7 {[%emt 0:01:39]} 31. Qf3 {[%emt 0:01:10]} a6 {[%emt 0:02:09]} 32. Bf1 {[%emt 0:00:57]} Qa5 {[%emt 0:01:23]} 33. Kb1 {[%emt 0:00:12]} Rd7 {[%emt 0:01:11]} 34. Re3 {[%emt 0:02:37]} Qd2 {[%emt 0:02:18]} 35. a3 {[%emt 0:03:20]} Qd1+ {[%emt 0:01:17]} 36. Ka2 {[%emt 0:00:39]} Qxf3 {[%emt 0:00:24]} 37. Rxf3 {[%emt 0:00:09]} Rdd8 {[%emt 0:00:19]} 38. h4 {[%emt 0:02:24]} Rdf8 {[%emt 0:00:17]} 39. Rxf8+ {[%emt 0:03:27]} Rxf8 {[%emt 0:01:04]} 40. Bd3 {[%emt 0:00:56]} Re8 {[%emt 0:00:22]} 41. Kb3 {[%emt 0:30:21]} Rxe5 {[%emt 0:30:32]} 42. Kc3 {[%emt 0:00:26]} Re3 {[%emt 0:00:35]} 43. g4 {[%emt 0:00:23]} Rh3 {[%emt 0:00:54]} 44. h5 {[%emt 0:02:16]} gxh5 {[%emt 0:00:42]} 45. gxh5 {[%emt 0:00:16]} h6 {[%emt 0:00:26]} 46. Kd4 {[%emt 0:00:09]} Rxh5 {[%emt 0:00:58]} 47. b4 {[%emt 0:00:30]} Rd5+ {[%emt 0:01:00]} 48. Ke4 {[%emt 0:00:15]} Rd8 {[%emt 0:01:41]} 49. Kf4 {[%emt 0:00:09]} h5 {[%emt 0:00:56]} 50. Kg5 {[%emt 0:00:09]} Rh8 {[%emt 0:00:12]} 51. Kh4 {[%emt 0:00:06]} Ka7 {[%emt 0:00:47]} 52. Bg6 {[%emt 0:00:09]} Kb6 {[%emt 0:00:29]} 53. c4 {[%emt 0:00:09]} c5 {[%emt 0:00:27]} 54. Bxh5 {[%emt 0:00:06]} a5 {[%emt 0:00:44]} 55. b5 {[%emt 0:00:06]} Kc7 {[%emt 0:00:35]} 56. Kg5 {[%emt 0:00:10]} Kd6 {[%emt 0:00:28]} 57. Bf3 {[%emt 0:00:16]} Rg8+ {[%emt 0:00:23]} 58. Kf4 {[%emt 0:00:40]} b6 {[%emt 0:00:59]} 59. a4 {[%emt 0:00:23]} Rg1 {[%emt 0:00:20]} 60. Bd5 {[%emt 0:00:19]} Ra1 {[%emt 0:00:33]} 61. Ke3 {[%emt 0:00:38]} Rxa4 {[%emt 0:00:18]} 62. Kd3 {[%emt 0:02:29]} Ra1 {[%emt 0:00:28]} 63. Kc2 {[%emt 0:00:06]} Ra4 {[%emt 0:00:54]} 64. Kc3 {[%emt 0:01:58]} Rb4 {[%emt 0:00:25]} 65. Bg8 {[%emt 0:00:09]} a4 {[%emt 0:00:48]} 66. Bh7 {[%emt 0:00:45]} a3 {[%emt 0:00:40]} 67. Kc2 {[%emt 0:00:30]} a2 {[%emt 0:00:24]} 68. Bd3 {[%emt 0:01:09]} a1=Q {[%emt 0:01:08]} 69. Kd2 {[%emt 0:00:12]} Rb2+ {[%emt 0:01:09]} 70. Bc2 {[%emt 0:00:24]} Qa5+ {[%emt 0:00:00]} 71. Kd3 {[%emt 0:01:20]} Qa3+ {[%emt 0:00:29]} 72. Kd2 {[%emt 0:00:26]} Qa2 {[%emt 0:00:25]} 73. Kd3 {[%emt 0:00:40]} Rxc2 {[%emt 0:00:19]} 74. Ke3 {[%emt 0:01:00]} Qa3+ {[%emt 0:00:43]} 75. Ke4 {[%emt 0:00:30]} Rxc4+ {[%emt 0:00:00]} 76. Kf5 {[%emt 0:00:30]} Qh3+ {[%emt 0:00:10]} 77. Kf6 {[%emt 0:00:30]} Rf4+ {[%emt 0:00:34]} 78. Kg6 {[%emt 0:00:30]} Qg3+ {[%emt 0:00:24]} 79. Kh7 {[%emt 0:00:30]} 0-1

[Event "CZE-ch Youth G10-G12-G14 2022"]
[Site "Luhacovice"]
[Date "2022.03.13"]
[Round "2.6"]
[White "Kubalova Nikol"]
[Black "Martikanova Amalie"]
[Result "1/2-1/2"]
[ECO "D00"]
[WhiteElo "1000"]
[BlackElo "1245"]
[Annotator "NA"]
[PlyCount "37"]
[EventDate "2022.03.12"]
[EventType "swiss"]
[EventCountry "CZE"]
[SourceTitle "playchess.com"]
[Source "ChessBase"]
[SourceQuality "1"]
[TimeControl "40/5400+30:1800+30"]

1. d4 {[%emt 0:00:04]} d5 {[%emt 0:00:23]} 2. Bf4 {[%emt 0:00:05]} Nc6 {[%emt 0:00:25]} 3. e3 {[%emt 0:00:21]} Bf5 {[%emt 0:00:42]} 4. Ne2 {[%emt 0:00:20]} Nf6 {[%emt 0:01:11]} 5. g3 {[%emt 0:01:16]} e6 {[%emt 0:05:36]} 6. Bg2 {[%emt 0:03:31]} Bb4+ {[%emt 0:00:30]} 7. Nbc3 {[%emt 0:00:30]} Ne4 {[%emt 0:00:30]} 8. O-O {[%emt 0:00:30]} Nxc3 {[%emt 0:00:30]} 9. Nxc3 {[%emt 0:00:30]} O-O {[%emt 0:00:30]} 10. Nb5 {[%emt 0:00:30]} Rc8 {[%emt 0:00:30]} 11. Qh5 {[%emt 0:00:30]} Qf6 {[%emt 0:00:30]} 12. g4 {[%emt 0:01:50]} Be4 {[%emt 0:02:41]} 13. Bxe4 {[%emt 0:00:38]} dxe4 {[%emt 0:00:41]} 14. g5 {[%emt 0:00:39]} Qf5 {[%emt 0:00:59]} 15. f3 {[%emt 0:01:33]} exf3 {[%emt 0:02:09]} 16. Rxf3 {[%emt 0:00:12]} Qxb5 {[%emt 0:01:15]} 17. Rh3 {[%emt 0:00:34]} f6 {[%emt 0:04:38]} 18. Rh4 {[%emt 0:01:46]} fxg5 {[%emt 0:01:42]} 19. c3 {[%emt 0:00:40]} 1/2-1/2